bitfinex/quotes_SOLUSD_20250619
["timestamp","ask_amount","ask_price","bid_price","bid_amount"]
[1750336940986,8.20397299,145.27,145.25,6.88468158]
[1750336941386,18.64964886,145.29,145.24,6.8851556]
[1750336941610,8.20397299,145.27,145.24,6.8851556]
[1750336941790,8.20397299,145.28,145.24,15.08912859]
[1750336941990,8.20397299,145.28,145.24,32.3020176]
[1750336942415,8.20397299,145.28,145.24,24.09804461]
[1750336942716,8.20397299,145.28,145.24,32.3020176]
[1750336943394,8.20397299,145.28,145.24,17.21288901]
[1750336943587,8.20397299,145.28,145.24,25.416862]
[1750336944093,8.20397299,145.27,145.24,17.21288901]
[1750336944492,34.20397299,145.28,145.24,17.21288901]
[1750336945613,34.20397299,145.28,145.24,24.09804461]
[1750336946410,34.20397299,145.28,145.24,32.3020176]
[1750336948290,8.20397299,145.29,145.25,8.20397299]
[1750336948497,8.20397299,145.3,145.26,8.20397299]
[1750336949526,8.20397299,145.3,145.25,8.20397299]
[1750336949690,8.20397299,145.29,145.24,32.3020176]
[1750336949889,8.20397299,145.28,145.24,32.3020176]
[1750336950099,8.20397299,145.27,145.24,24.09804461]
[1750336950429,26.85362185,145.32,145.24,24.09804461]
[1750336950430,26.0,145.29,145.24,24.09804461]
[1750336950711,8.20397299,145.28,145.24,32.3020176]
[1750336950894,8.20397299,145.28,145.24,24.09804461]
[1750336951617,8.20397299,145.28,145.24,32.3020176]
[1750336952530,8.20397299,145.28,145.24,24.09804461]
[1750336952692,8.20397299,145.28,145.24,32.3020176]
[1750336953614,34.20397299,145.29,145.24,32.3020176]
[1750336955923,8.20397299,145.28,145.24,32.3020176]
[1750336956124,8.20397299,145.28,145.24,24.09804461]
[1750336958296,8.20397299,145.28,145.24,25.416862]
[1750336959620,8.20397299,145.28,145.24,24.09804461]
[1750336960824,5.25854034,145.28,145.24,24.09804461]
[1750336961405,5.25854034,145.27,145.24,24.09804461]
[1750336961607,5.25854034,145.26,145.24,6.8851556]
[1750336962113,5.25854034,145.27,145.24,6.8851556]
[1750336963233,26.0,145.28,145.23,29.35824425]
[1750336963530,5.25854034,145.27,145.23,29.35824425]
[1750336968341,5.25854034,145.27,145.23,24.09970391]
[1750336968523,5.25854034,145.27,145.23,29.35824425]
[1750336971132,5.25854034,145.27,145.23,24.09970391]
[1750336971356,5.25854034,145.26,145.23,24.09970391]
[1750336972211,5.25854034,145.25,145.23,6.88562969]
[1750336973551,5.25854034,145.27,145.23,6.88562969]
[1750336973730,5.25854034,145.27,145.23,24.09970391]
[1750336974838,8.21752679,145.27,145.23,24.09970391]
[1750336976328,8.21752679,145.25,145.23,6.88562969]
[1750336978231,18.64964886,145.27,145.23,6.88562969]
[1750336978560,8.21752679,145.25,145.23,6.88562969]
[1750336979746,8.21752679,145.25,145.22,6.88610384]
[1750336980542,8.21752679,145.23,145.2,6.88705234]
[1750336980748,8.21752679,145.22,145.2,6.88705234]
[1750336981126,13.36963029,145.21,145.16,16.61336631]
[1750336981456,13.36861764,145.2,145.16,16.61336631]
[1750336981649,8.21752679,145.19,145.17,6.88847558]
[1750336981815,8.21752679,145.2,145.17,6.88847558]
[1750336982227,13.36578874,145.22,145.18,8.21752679]
[1750336982434,8.21752679,145.22,145.18,8.21752679]
[1750336982652,26.0,145.25,145.2,8.21752679]
[1750336982848,31.14739638,145.25,145.22,8.21752679]
[1750336983150,26.0,145.25,145.22,8.21752679]
[1750336983649,26.0,145.25,145.18,14.26722679]
[1750336983650,8.21752679,145.23,145.18,17.21889996]
[1750336983846,8.21752679,145.21,145.17,6.88847558]
[1750336984149,8.21752679,145.2,145.17,6.88847558]
[1750336984523,8.21752679,145.21,145.17,6.88847558]
[1750336984942,8.21752679,145.2,145.17,6.88847558]
[1750336986238,44.64964886,145.22,145.17,6.88847558]
[1750336986561,8.21752679,145.21,145.17,32.32719132]
[1750336987549,26.0,145.22,145.17,32.32719132]
[1750336987550,8.21752679,145.22,145.17,32.32719132]
[1750336988347,8.21752679,145.21,145.17,32.32719132]
[1750336988545,31.1386669,145.24,145.17,32.32719132]
[1750336988748,8.21752679,145.22,145.17,24.10966453]
[1750336989054,8.21752679,145.22,145.17,32.32719132]
[1750336989260,8.21752679,145.22,145.18,8.21752679]
[1750336989430,26.0,145.24,145.18,8.21752679]
[1750336989632,8.21752679,145.22,145.17,32.32719132]
[1750336990538,8.21752679,145.22,145.18,8.21752679]
[1750336991151,8.21752679,145.21,145.17,24.10966453]
[1750336993154,8.21752679,145.21,145.17,32.32719132]
[1750336993636,8.21752679,145.22,145.17,32.32719132]
[1750336994247,8.21752679,145.21,145.17,24.10966453]
[1750336994446,8.21752679,145.2,145.17,24.10966453]
[1750336994737,18.64964886,145.23,145.17,24.10966453]
[1750336994937,8.21752679,145.2,145.17,24.10966453]
[1750336997555,8.21752679,145.21,145.17,24.10966453]
[1750336997943,8.21752679,145.2,145.17,24.10966453]
[1750336999342,8.21752679,145.18,145.17,6.88847558]
[1750337000752,8.21752679,145.18,145.15,24.11290899]
[1750337001439,44.64964886,145.21,145.15,6.88942473]
[1750337001440,8.21752679,145.17,145.15,6.88942473]
[1750337002243,8.21752679,145.16,145.14,12.78967787]
[1750337002849,18.64964886,145.18,145.14,12.78967787]
[1750337003044,5.13076853,145.2,145.14,12.78967787]
[1750337003251,8.21752679,145.18,145.14,12.78967787]
[1750337003451,8.21752679,145.16,145.14,12.78967787]
[1750337003645,8.21752679,145.17,145.14,12.78967787]
[1750337003834,8.21752679,145.16,145.14,12.78967787]
[1750337004451,8.21752679,145.17,145.14,12.78967787]
[1750337005373,8.21752679,145.16,145.14,12.78967787]
[1750337007655,15.10568057,145.18,145.14,6.88967787]
[1750337007857,8.21752679,145.15,145.14,6.88967787]
[1750337009473,8.21752679,145.15,145.12,24.11695277]
[1750337009657,8.21752679,145.16,145.12,24.11695277]
[1750337010650,8.21752679,145.16,145.12,32.33447956]
[1750337010856,8.21752679,145.16,145.1,24.12129564]
[1750337011161,8.21752679,145.16,145.12,8.21752679]
[1750337011357,8.21752679,145.17,145.12,8.21752679]
[1750337012278,44.22211041,145.2,145.13,6.89037414]
[1750337012455,8.21752679,145.17,145.13,32.33383629]
[1750337012771,18.64964886,145.19,145.13,32.33383629]
[1750337013072,8.21752679,145.18,145.13,32.33383629]
[1750337013667,8.21752679,145.17,145.13,24.1163095]
[1750337014376,8.21752679,145.16,145.12,8.21752679]
[1750337014560,8.21752679,145.16,145.11,32.33716016]
[1750337014868,18.64964886,145.19,145.11,24.11963337]
[1750337014869,8.21752679,145.15,145.11,24.11963337]
[1750337015273,8.21752679,145.14,145.11,6.89132382]
[1750337016048,8.21752679,145.14,145.09,137.78242613]
[1750337016049,8.21752679,145.12,145.09,16.66666667]
[1750337016273,8.21752679,145.1,145.09,16.66666667]
[1750337016583,18.64964886,145.1,145.09,16.66666667]
[1750337016763,26.86717565,145.1,145.09,16.66666667]
[1750337017156,18.64964886,145.1,145.09,16.66666667]
[1750337017462,26.86717565,145.1,145.09,16.66666667]
[1750337018854,18.64964886,145.1,145.09,16.66666667]
[1750337019055,26.86717565,145.1,145.09,16.66666667]
[1750337019353,26.86717565,145.1,145.09,23.55894043]
[1750337019680,8.21752679,145.1,145.09,16.66666667]
[1750337020875,8.21752679,145.1,145.09,23.55893708]
[1750337021377,9.24832375,145.12,145.09,23.55893708]
[1750337021764,9.24832375,145.12,145.09,40.78962148]
[1750337021966,9.24832375,145.12,145.09,49.00714827]
[1750337022567,9.24832375,145.12,145.09,40.78962148]
[1750337022767,17.46585054,145.12,145.09,40.78962148]
[1750337023583,8.21752679,145.1,145.09,23.55893708]
[1750337024461,8.21752679,145.1,145.09,16.66666667]
[1750337026087,9.24832375,145.12,145.09,23.55894043]
[1750337026270,9.24832375,145.12,145.09,40.78962483]
[1750337026678,17.46585054,145.12,145.09,40.78962483]
[1750337028977,9.24832375,145.12,145.1,8.21752679]
[1750337030682,9.24832375,145.12,145.1,7.71752679]
[1750337031376,9.24832375,145.12,145.11,6.89132382]
[1750337033681,17.46585054,145.12,145.1,6.89179875]
[1750337034084,9.24832375,145.12,145.1,6.89179875]
[1750337036392,9.24832375,145.12,145.1,15.10932554]
[1750337036782,9.24832375,145.12,145.1,6.89179875]
[1750337039599,8.21752679,145.11,145.1,6.89179875]
[1750337041517,8.21752679,145.11,145.09,16.66666667]
[1750337041677,8.21752679,145.1,145.09,16.66666667]
[1750337043404,52.86717565,145.1,145.09,16.66666667]
[1750337043600,59.7589744,145.1,145.09,16.66666667]
[1750337044389,64.88792501,145.1,145.09,16.66666667]
[1750337045085,59.7589744,145.1,145.09,16.66666667]
[1750337046016,57.99552259,145.1,145.09,16.66666667]
[1750337046193,49.7779958,145.1,145.09,16.66666667]
[1750337046390,49.7779958,145.1,145.06,6.89360006]
[1750337046391,52.86717565,145.1,145.06,6.89360006]
[1750337046608,8.21752679,145.08,145.06,6.89360006]
[1750337047490,8.21752679,145.08,145.05,6.89417442]
[1750337048912,8.21752679,145.07,145.05,6.89417442]
[1750337050211,8.21752679,145.08,145.05,6.89417442]
[1750337052217,44.64964886,145.1,145.05,6.89417442]
[1750337052392,8.21752679,145.08,145.05,6.89417442]
[1750337056929,18.64964886,145.09,145.05,6.89417442]
[1750337057108,8.21752679,145.08,145.05,6.89417442]
[1750337058525,8.21752679,145.09,145.05,6.89417442]
[1750337058696,12.91119935,145.09,145.05,6.89417442]
[1750337058896,8.21752679,145.07,145.05,6.89417442]
[1750337059091,8.21752679,145.08,145.05,6.89417442]
[1750337060701,12.91606858,145.09,145.05,6.89417442]
[1750337062926,4.69854179,145.09,145.05,32.34713726]
[1750337063105,12.91606858,145.1,145.05,32.34713726]
[1750337063500,8.21752679,145.1,145.05,32.34713726]
[1750337063812,12.91587432,145.09,145.05,24.12961047]
[1750337064002,8.21752679,145.09,145.05,24.12961047]
[1750337064327,12.91587432,145.09,145.05,32.34713726]
[1750337064513,8.21752679,145.09,145.05,32.34713726]
[1750337064719,12.91587432,145.09,145.05,32.34713726]
[1750337064902,8.21752679,145.09,145.05,32.34713726]
[1750337065102,12.91587432,145.09,145.05,32.34713726]
[1750337065302,8.21752679,145.09,145.05,32.34713726]
[1750337065653,8.21752679,145.07,145.05,6.89417442]
[1750337065935,8.21752679,145.08,145.05,6.89417442]
[1750337066421,4.69834753,145.09,145.05,6.89417442]
[1750337066422,8.21752679,145.07,145.05,6.89417442]
[1750337068631,8.21752679,145.06,145.05,6.89417442]
[1750337068801,8.21752679,145.06,145.04,5.9]
[1750337069001,8.21752679,145.05,145.03,6.89477805]
[1750337069218,8.21752679,145.06,145.03,6.89477805]
[1750337069427,4.69770121,145.07,145.03,6.89477805]
[1750337069725,8.21752679,145.07,145.03,15.11230484]
[1750337070534,8.21752679,145.07,145.03,32.3501177]
[1750337070911,8.21752679,145.07,145.03,24.13259091]
[1750337071117,8.21752679,145.07,145.03,32.3501177]
[1750337071530,8.21752679,145.08,145.03,32.3501177]
[1750337072731,8.21752679,145.07,145.03,24.13259091]
[1750337072928,8.21752679,145.07,145.03,32.3501177]
[1750337074226,8.21752679,145.08,145.04,8.21752679]
[1750337074424,8.21752679,145.08,145.03,24.13259091]
[1750337074832,8.21752679,145.08,145.04,8.21752679]
[1750337075034,8.21752679,145.08,145.03,32.3501177]
[1750337075342,8.21752679,145.08,145.04,8.21752679]
[1750337075534,34.21752679,145.09,145.04,8.21752679]
[1750337076243,34.21752679,145.09,145.05,6.89417442]
[1750337076940,34.21752679,145.09,145.05,15.11170121]
[1750337077129,8.21752679,145.09,145.05,15.11170121]
[1750337077327,12.9178587,145.09,145.05,15.11170121]
[1750337077828,4.70033191,145.09,145.05,15.11170121]
[1750337078030,12.91926409,145.1,145.05,15.11170121]
[1750337078226,8.21752679,145.1,145.05,15.11170121]
[1750337078447,12.91978837,145.1,145.05,15.11170121]
[1750337078631,12.91980855,145.1,145.05,15.11170121]
[1750337078831,8.21752679,145.1,145.05,15.11170121]
[1750337079448,8.21752679,145.1,145.05,32.34713726]
[1750337080322,8.21752679,145.09,145.05,32.34713726]
[1750337080738,12.92060876,145.09,145.05,32.34713726]
[1750337081648,8.21752679,145.09,145.05,32.34713726]
[1750337082048,8.21752679,145.09,145.05,24.12961047]
[1750337082049,8.21752679,145.08,145.05,24.12961047]
[1750337082243,8.21752679,145.08,145.05,6.89417442]
[1750337083927,8.21752679,145.07,145.05,6.89417442]
[1750337085227,5.15620478,145.08,145.05,6.89417442]
[1750337085553,8.21752679,145.07,145.05,6.89417442]
[1750337085936,8.21752679,145.07,145.04,6.89464975]
[1750337086336,5.15632216,145.09,145.04,6.89464975]
[1750337086552,8.21752679,145.07,145.04,6.89464975]
[1750337088653,8.21752679,145.06,145.04,6.89464975]
[1750337088828,8.21752679,145.05,145.02,6.8956006]
[1750337095231,12.90948604,145.04,145.02,6.8956006]
[1750337095446,8.21752679,145.04,145.02,6.8956006]
[1750337096041,6.89373563,145.06,145.02,6.8956006]
[1750337096247,8.21752679,145.04,145.02,6.8956006]
[1750337099353,12.91039187,145.04,145.02,6.8956006]
[1750337099551,8.21752679,145.04,145.02,6.8956006]
[1750337099752,12.91039187,145.04,145.02,6.8956006]
[1750337099952,8.21752679,145.04,145.02,6.8956006]
[1750337100665,12.91018052,145.04,145.02,6.8956006]
[1750337100965,8.21752679,145.04,145.02,6.8956006]
[1750337101164,12.91018052,145.04,145.02,6.8956006]
[1750337101372,9.84293713,145.05,145.02,6.8956006]
[1750337101662,8.21752679,145.03,145.0,6.89637785]
[1750337101839,4.69241437,145.03,145.0,6.89637785]
[1750337102043,4.69241437,145.03,145.0,15.11390464]
[1750337102837,18.05811799,145.04,145.0,15.11390464]
[1750337103041,8.21752679,145.04,145.0,15.11390464]
[1750337103244,9.83975721,145.04,145.01,8.21752679]
[1750337103466,8.21752679,145.04,145.0,6.89637785]
[1750337103642,4.68865421,145.03,144.97,15.11550568]
[1750337103836,5.1502834,145.04,145.0,8.21752679]
[1750337104041,13.36781019,145.04,145.0,8.21752679]
[1750337104267,8.21752679,145.04,145.0,8.21752679]
[1750337104464,4.68831472,145.04,145.01,6.89607613]
[1750337104767,4.68831472,145.04,145.01,15.11360292]
[1750337104939,4.68831472,145.04,145.01,24.13626646]
[1750337106267,12.90584151,145.04,145.01,24.13626646]
[1750337106481,12.90584151,145.04,145.0,8.21752679]
[1750337106642,12.90584151,145.04,144.99,25.45994389]
[1750337106977,34.21752679,145.06,145.02,8.21752679]
[1750337107144,12.90226423,145.05,144.99,17.2424171]
[1750337107343,18.04201087,145.05,145.01,8.21752679]
[1750337107544,8.21752679,145.04,145.0,8.21752679]
[1750337108149,8.21752679,145.04,144.99,17.2424171]
[1750337108464,26.0,145.06,145.03,15.11265193]
[1750337108668,26.0,145.06,145.03,6.89512514]
[1750337108856,34.21752679,145.06,145.03,6.89512514]
[1750337110855,4.68675646,145.05,145.03,6.89512514]
[1750337111066,34.21752679,145.06,145.03,6.89512514]
[1750337111273,26.0,145.06,145.03,6.89512514]
[1750337111458,8.21752679,145.07,145.03,6.89512514]
[1750337111657,4.6871502,145.06,145.03,6.89512514]
[1750337111965,8.21752679,145.07,145.03,32.35046479]
[1750337111966,4.6871502,145.07,145.03,32.35046479]
[1750337112161,8.21752679,145.08,145.03,32.35046479]
[1750337112340,8.21752679,145.09,145.05,8.21752679]
[1750337112540,4.68667223,145.08,145.06,6.89369915]
[1750337113545,8.21752679,145.09,145.06,6.89369915]
[1750337113870,12.90002502,145.09,145.06,6.89369915]
[1750337114876,4.68249823,145.09,145.07,8.21752679]
[1750337115046,4.68195474,145.1,145.07,8.21752679]
[1750337115856,4.68195474,145.1,145.06,32.34547383]
[1750337116956,13.35836811,145.11,145.06,32.34547383]
[1750337117846,13.35836811,145.11,145.06,24.12794704]
[1750337118048,13.35836811,145.11,145.07,8.21752679]
[1750337119275,13.35836811,145.11,145.02,58.61260514]
[1750337119577,5.14084132,145.11,145.07,8.21752679]
[1750337119769,13.35836811,145.11,145.07,8.21752679]
[1750337119955,8.21752679,145.1,145.06,8.21752679]
[1750337120652,8.21752679,145.1,145.02,146.81260514]
[1750337120872,8.21752679,145.1,145.06,8.21752679]
[1750337121255,23.79049018,145.11,145.07,6.89322396]
[1750337121452,32.00801697,145.1,145.07,6.89322396]
[1750337121652,8.21752679,145.09,145.07,6.89322396]
[1750337122545,8.21752679,145.09,145.06,6.89369915]
[1750337123857,8.21752679,145.09,145.05,8.21752679]
[1750337124175,8.21752679,145.09,145.04,17.23634433]
[1750337124375,23.79049018,145.1,145.05,8.21752679]
[1750337124572,26.86717565,145.1,145.05,8.21752679]
[1750337124775,32.00801697,145.1,145.05,8.21752679]
[1750337124977,26.86717565,145.1,145.05,8.21752679]
[1750337125177,32.00801697,145.1,145.05,8.21752679]
[1750337125475,32.00801697,145.1,145.04,17.23634433]
[1750337125476,26.86717565,145.1,145.06,8.21752679]
[1750337125654,32.00801697,145.1,145.06,8.21752679]
[1750337125975,26.86717565,145.1,145.07,6.89322396]
[1750337126175,32.00801697,145.1,145.07,6.89322396]
[1750337126477,26.86717565,145.1,145.07,6.89322396]
[1750337126776,32.00801697,145.1,145.07,6.89322396]
[1750337126970,26.86717565,145.1,145.04,17.23634433]
[1750337127278,32.00801697,145.1,145.06,8.21752679]
[1750337127449,26.86717565,145.1,145.06,8.21752679]
[1750337127653,32.00801697,145.1,145.06,8.21752679]
[1750337127864,26.86717565,145.1,145.06,8.21752679]
[1750337128182,9.24832375,145.12,145.09,8.21752679]
[1750337128361,14.38810103,145.12,145.08,8.21752679]
[1750337128561,9.24832375,145.12,145.08,8.21752679]
[1750337128958,9.24832375,145.12,145.05,89.7492]
[1750337129166,9.24832375,145.12,145.06,24.12794704]
[1750337129369,17.46585054,145.12,145.07,8.21752679]
[1750337129952,8.21752679,145.11,145.07,8.21752679]
[1750337130157,8.21752679,145.1,145.06,24.12794704]
[1750337130374,8.21752679,145.1,145.06,32.34547383]
[1750337130675,8.21752679,145.09,145.06,6.89369915]
[1750337131051,8.21752679,145.09,145.02,58.61260514]
[1750337131273,8.21752679,145.08,145.02,58.61260514]
[1750337131605,8.21752679,145.08,145.04,8.21752679]
[1750337131757,8.21752679,145.08,145.03,8.21752679]
[1750337132159,8.21752679,145.07,145.02,24.13460211]
[1750337132360,8.21752679,145.07,145.02,32.3521289]
[1750337133577,8.21752679,145.07,145.02,24.13460211]
[1750337133751,8.21752679,145.07,145.02,32.3521289]
[1750337134471,5.13977728,145.1,145.05,8.21752679]
[1750337134773,43.16292375,145.12,145.05,8.21752679]
[1750337134774,23.78942614,145.11,145.05,8.21752679]
[1750337134977,23.78942614,145.11,145.02,24.13460211]
[1750337134978,8.21752679,145.09,145.02,24.13460211]
[1750337135157,23.78942614,145.11,145.06,6.89369915]
[1750337135360,8.21752679,145.09,145.06,6.89369915]
[1750337136076,23.78942614,145.11,145.06,6.89369915]
[1750337136278,8.21752679,145.09,145.06,6.89369915]
[1750337138564,8.21752679,145.09,145.04,8.21752679]
[1750337139580,8.21752679,145.09,145.02,58.61260514]
[1750337139885,8.21752679,145.08,145.03,8.21752679]
[1750337140185,8.21752679,145.08,145.04,8.21752679]
[1750337140388,8.21752679,145.08,145.03,8.21752679]
[1750337141686,8.21752679,145.08,145.04,6.89464975]
[1750337143470,18.64964886,145.09,145.04,6.89464975]
[1750337143981,8.21752679,145.08,145.04,6.89464975]
[1750337144481,9.24832375,145.12,145.07,8.21752679]
[1750337144658,9.24832375,145.12,145.11,8.21752679]
[1750337145454,9.24832375,145.12,145.05,34.71922644]
[1750337145788,9.24832375,145.12,145.08,8.21752679]
[1750337146378,32.00414197,145.13,145.07,8.21752679]
[1750337146596,58.00414197,145.13,145.06,32.34547383]
[1750337146756,5.13696632,145.12,145.06,24.12794704]
[1750337146958,5.13696632,145.12,145.06,32.34547383]
[1750337147159,5.13696632,145.12,145.06,24.12794704]
[1750337147466,5.13696632,145.12,145.01,35.6279]
[1750337147467,18.64964886,145.11,144.98,34.48632887]
[1750337147669,26.0,145.06,144.98,24.14126085]
[1750337147875,26.0,145.06,145.0,8.21752679]
[1750337148080,26.0,145.06,144.98,24.14126085]
[1750337148269,18.64964886,145.07,145.02,8.21752679]
[1750337148467,26.0,145.08,145.02,8.21752679]
[1750337148668,26.0,145.08,145.03,8.21752679]
[1750337148967,34.1054,145.1,145.01,26.0]
[1750337149393,42.32292679,145.1,145.04,8.21752679]
[1750337149575,42.32292679,145.1,145.01,26.0]
[1750337149576,47.45699274,145.1,145.06,6.89369915]
[1750337149763,42.32292679,145.1,145.06,6.89369915]
[1750337150289,47.45822649,145.1,145.06,6.89369915]
[1750337150466,42.32292679,145.1,145.06,6.89369915]
[1750337150870,47.4594087,145.1,145.06,6.89369915]
[1750337151094,42.32292679,145.1,145.06,6.89369915]
[1750337151294,34.1054,145.1,145.06,8.21752679]
[1750337151620,34.1054,145.1,145.05,8.21752679]
[1750337151908,42.32292679,145.1,145.05,8.21752679]
[1750337152191,18.64964886,145.09,145.04,8.21752679]
[1750337152389,23.78615147,145.09,145.04,8.21752679]
[1750337152609,32.00367826,145.09,145.02,24.13349737]
[1750337152887,32.00367826,145.09,145.04,8.21752679]
[1750337153598,5.13650261,145.08,145.05,6.89417442]
[1750337154882,5.13650261,145.08,145.02,24.13349737]
[1750337155082,5.13650261,145.08,145.04,8.21752679]
[1750337155998,18.64964886,145.09,145.04,8.21752679]
[1750337156200,5.14165037,145.08,145.02,24.13349737]
[1750337156500,18.64964886,145.09,145.04,8.21752679]
[1750337156683,5.14162837,145.08,145.04,8.21752679]
[1750337156982,18.64964886,145.09,145.04,8.21752679]
[1750337157185,5.1420931,145.08,145.05,6.89417442]
[1750337157402,18.64964886,145.09,145.05,6.89417442]
[1750337157703,5.14206746,145.08,145.05,6.89417442]
[1750337157894,18.64964886,145.09,145.05,6.89417442]
[1750337158094,5.14209871,145.08,145.05,6.89417442]
[1750337158294,18.64964886,145.09,145.05,6.89417442]
[1750337158511,5.14197335,145.08,145.05,6.89417442]
[1750337158711,18.64964886,145.09,145.05,6.89417442]
[1750337158897,5.14199928,145.08,145.05,6.89417442]
[1750337159097,18.64964886,145.09,145.05,6.89417442]
[1750337159302,5.14201047,145.08,145.05,6.89417442]
[1750337159503,18.64964886,145.09,145.05,6.89417442]
[1750337159699,5.14207009,145.08,145.05,6.89417442]
[1750337159901,18.64964886,145.09,145.05,6.89417442]
[1750337160209,5.14192694,145.08,145.05,6.89417442]
[1750337160394,26.86717565,145.09,145.04,8.21752679]
[1750337160595,5.14216956,145.08,145.04,8.21752679]
[1750337160788,8.21752679,145.08,145.03,8.21752679]
[1750337160996,18.64964886,145.09,145.02,32.35102416]
[1750337160997,13.35941292,145.07,145.02,32.35102416]
[1750337161210,8.21752679,145.07,145.02,32.35102416]
[1750337161507,8.21752679,145.07,145.02,24.13349737]
[1750337161712,13.35881683,145.06,145.02,6.8956006]
[1750337161904,8.21752679,145.06,145.02,6.8956006]
[1750337162312,13.35881683,145.06,145.02,6.8956006]
[1750337162618,8.21752679,145.06,145.02,6.8956006]
[1750337162817,13.35881683,145.06,145.02,6.8956006]
[1750337163016,8.21752679,145.06,145.02,6.8956006]
[1750337163194,13.35779686,145.06,145.02,6.8956006]
[1750337163396,8.21752679,145.06,145.02,6.8956006]
[1750337163596,13.35779686,145.06,145.02,6.8956006]
[1750337163810,5.14027007,145.07,145.02,6.8956006]
[1750337164012,13.35779686,145.06,145.02,6.8956006]
[1750337164212,8.21752679,145.06,145.02,6.8956006]
[1750337164401,13.35779686,145.06,145.02,6.8956006]
[1750337164598,8.21752679,145.06,145.02,6.8956006]
[1750337164806,13.35779686,145.06,145.02,15.11312739]
[1750337165017,8.21752679,145.06,145.02,15.11312739]
[1750337165314,5.14027007,145.06,145.03,8.21752679]
[1750337165514,8.21752679,145.07,145.03,8.21752679]
[1750337165714,5.14027007,145.07,145.03,8.21752679]
[1750337165893,26.86717565,145.07,145.02,6.8956006]
[1750337166096,32.00744572,145.07,145.03,8.21752679]
[1750337166295,26.86717565,145.07,145.03,8.21752679]
[1750337166522,23.78991893,145.07,145.03,8.21752679]
[1750337166702,26.86717565,145.07,145.03,8.21752679]
[1750337167005,32.00744572,145.07,145.03,8.21752679]
[1750337167207,18.64964886,145.07,145.04,6.89464975]
[1750337167399,32.00744572,145.07,145.04,6.89464975]
[1750337167709,26.86717565,145.07,145.04,6.89464975]
[1750337167912,32.00744572,145.07,145.04,6.89464975]
[1750337168111,26.86717565,145.07,145.04,6.89464975]
[1750337168304,32.00744572,145.07,145.04,6.89464975]
[1750337168506,26.86717565,145.07,145.04,6.89464975]
[1750337168818,5.14027007,145.06,145.04,6.89464975]
[1750337169000,13.35779686,145.06,145.04,6.89464975]
[1750337169520,5.14027007,145.06,145.03,6.89512514]
[1750337169895,32.00744572,145.07,145.03,6.89512514]
[1750337170094,5.14027007,145.06,145.03,6.89512514]
[1750337170303,26.86717565,145.07,145.03,6.89512514]
[1750337170518,32.00744572,145.07,145.03,6.89512514]
[1750337170822,26.86717565,145.07,145.03,6.89512514]
[1750337170994,32.00744572,145.07,145.03,6.89512514]
[1750337171197,26.86717565,145.07,145.03,6.89512514]
[1750337171399,32.00744572,145.07,145.03,6.89512514]
[1750337171597,26.86717565,145.07,145.03,6.89512514]
[1750337171920,32.00744572,145.07,145.03,6.89512514]
[1750337172124,26.86717565,145.07,145.03,6.89512514]
[1750337172323,32.00744572,145.07,145.03,6.89512514]
[1750337173219,8.21752679,145.06,145.03,6.89512514]
[1750337173823,8.21752679,145.06,145.02,6.8956006]
[1750337174322,8.21752679,145.06,145.02,15.11312739]
[1750337174524,13.35779686,145.06,145.02,15.11312739]
[1750337175237,5.14027007,145.06,145.02,15.11312739]
[1750337175419,13.35779686,145.06,145.02,6.8956006]
[1750337176222,8.21752679,145.05,145.02,6.8956006]
[1750337176402,13.35779686,145.05,145.02,6.8956006]
[1750337176603,8.21752679,145.05,145.02,6.8956006]
[1750337176804,13.355371,145.05,145.02,6.8956006]
[1750337177010,8.21752679,145.05,145.02,6.8956006]
[1750337177420,5.13784421,145.06,145.02,6.8956006]
[1750337177421,8.21752679,145.04,145.02,6.8956006]
[1750337178408,8.21752679,145.04,145.01,6.89585905]
[1750337179430,8.21752679,145.04,145.0,15.11407851]
[1750337180421,8.21752679,145.04,144.98,24.14102485]
[1750337180625,8.21752679,145.03,144.98,24.14102485]
[1750337180801,8.21752679,145.03,144.98,32.35855164]
[1750337181202,8.21752679,145.03,144.99,8.21752679]
[1750337181622,8.21752679,145.03,145.0,6.89655172]
[1750337182209,8.21752679,145.01,144.97,15.11550568]
[1750337183516,18.64964886,145.02,144.97,15.11550568]
[1750337183813,26.86717565,145.02,144.97,15.11550568]
[1750337184126,26.86717565,145.02,144.98,8.21752679]
[1750337184835,26.86717565,145.02,144.97,15.11550568]
[1750337187032,26.86717565,145.02,144.97,6.89797889]
[1750337187208,26.86717565,145.02,144.97,15.11550568]
[1750337188335,18.64964886,145.02,144.97,15.11550568]
[1750337188638,26.86717565,145.02,144.97,15.11550568]
[1750337190911,26.86717565,145.02,144.97,6.89797889]
[1750337191233,5.13136084,145.03,144.97,32.36045291]
[1750337191433,26.0,145.04,145.02,6.8956006]
[1750337191809,7.9871,145.05,145.02,15.11312739]
[1750337192412,16.20462679,145.05,145.02,6.8956006]
[1750337193533,16.20462679,145.05,144.99,17.24185747]
[1750337193836,16.20462679,145.05,145.01,8.21752679]
[1750337194822,8.21752679,145.04,144.99,17.24185747]
[1750337195026,8.21752679,145.02,144.98,15.11502989]
[1750337195629,8.21752679,145.03,144.98,15.11502989]
[1750337196441,30.67845822,145.04,144.98,6.8975031]
[1750337196636,8.21752679,145.02,144.98,15.11502989]
[1750337197141,18.64964886,145.03,144.98,15.11502989]